bitfinex-derivatives/quotes_ETHF0:USTF0_20260204
["timestamp","ask_amount","ask_price","bid_price","bid_amount"]
[1770240541843,4.15232936,2141.9,2141.0,3.52019061]
[1770240542146,4.15232936,2141.8,2141.0,3.52019061]
[1770240542347,2.69930981,2142.0,2141.0,3.52019061]
[1770240542551,4.1523652,2141.9,2141.0,3.52019061]
[1770240542745,2.69930981,2142.0,2141.0,3.52019061]
[1770240542942,4.15251592,2141.9,2141.1,2.58629061]
[1770240543142,2.69930981,2142.0,2141.1,2.58629061]
[1770240543344,4.15174967,2141.9,2141.1,2.58629061]
[1770240544450,6.84639211,2141.9,2141.1,2.58629061]
[1770240544648,4.15174967,2141.8,2141.1,2.58629061]
[1770240544847,2.69464244,2141.9,2141.1,2.58629061]
[1770240545147,4.14957253,2141.8,2141.1,2.58629061]
[1770240545349,2.69464244,2141.9,2141.1,2.58629061]
[1770240545548,4.14847925,2141.8,2141.1,2.58629061]
[1770240545748,2.69464244,2141.9,2141.1,2.58629061]
[1770240545950,4.14847921,2141.8,2141.1,2.58629061]
[1770240546141,2.69464244,2141.9,2141.1,2.58629061]
[1770240546444,0.00466737,2142.0,2141.1,2.58629061]
[1770240546649,4.14827472,2141.9,2141.1,2.58629061]
[1770240546849,0.00466737,2142.0,2141.1,2.58629061]
[1770240547151,4.14806258,2141.9,2141.1,2.58629061]
[1770240547349,2.69930981,2142.0,2141.1,2.58629061]
[1770240547548,4.14789236,2141.9,2141.1,2.58629061]
[1770240547747,0.00466737,2142.0,2141.1,2.58629061]
[1770240547947,4.14787911,2141.9,2141.1,2.58629061]
[1770240548243,0.00466737,2142.0,2141.1,2.58629061]
[1770240548448,4.14764715,2141.9,2141.1,2.58629061]
[1770240548648,0.00466737,2142.0,2141.1,2.58629061]
[1770240549044,0.00466737,2142.0,2141.1,2.82032061]
[1770240549246,0.00466737,2142.0,2141.3,2.58629061]
[1770240550645,0.467,2142.7,2141.5,2.58629061]
[1770240550945,0.467,2142.7,2141.9,2.58629061]
[1770240551250,2.69464244,2143.0,2142.1,2.82022061]
[1770240551551,4.09969883,2142.9,2142.1,2.82399026]
[1770240551750,0.00588046,2143.0,2142.1,2.82399026]
[1770240552545,0.00588046,2143.0,2142.3,2.58629061]
[1770240552753,0.00588046,2143.0,2142.3,2.82019061]
[1770240553554,2.69464244,2143.2,2142.1,2.59006026]
[1770240553754,43.16105449,2143.1,2141.8,2.58629061]
[1770240553950,6.74961949,2143.0,2142.0,2.58629061]
[1770240554150,4.05497705,2142.9,2142.0,2.58629061]
[1770240554752,0.00494852,2142.9,2142.0,2.59222342]
[1770240555147,0.00494852,2142.9,2142.2,2.58629061]
[1770240556052,0.00494852,2142.9,2142.2,2.82021061]
[1770240556352,0.00494852,2142.9,2142.4,2.58629061]
[1770240561255,40.93341205,2143.5,2142.4,2.58629061]
[1770240561452,4.05971085,2143.4,2142.4,2.58629061]
[1770240561652,4.05971085,2143.3,2142.4,2.58629061]
[1770240561853,4.05971085,2143.2,2142.4,2.58629061]
[1770240562154,0.0055511,2143.2,2142.4,2.58629061]
[1770240562956,0.0055511,2143.2,2142.4,2.82018061]
[1770240563253,12.76153198,2144.1,2143.0,2.58629061]
[1770240563456,4.06307426,2144.0,2143.0,2.58629061]
[1770240563657,12.76153198,2144.1,2143.0,2.58629061]
[1770240563951,12.76153198,2144.1,2143.0,2.82012061]
[1770240564159,12.7664423,2144.1,2143.2,3.58703878]
[1770240564749,10.07179986,2144.1,2143.2,3.58703878]
[1770240566155,0.00491032,2144.1,2143.4,3.58703878]
[1770240567658,3.34687183,2144.7,2143.7,3.58703878]
[1770240567858,4.04047086,2144.6,2143.7,3.58703878]
[1770240568062,3.34687183,2145.0,2143.7,3.82078878]
[1770240568264,0.467,2145.1,2144.1,3.58703878]
[1770240568666,0.4706495,2145.1,2144.1,3.8267637]
[1770240570366,3.81752133,2145.1,2144.1,0.00601492]
[1770240570562,3.34687183,2144.9,2143.8,3.58703878]
[1770240570866,3.34687183,2144.9,2143.8,3.82077878]
[1770240571565,3.34687183,2144.9,2143.8,3.82524706]
[1770240571761,4.683,2145.0,2143.3,0.23379]
[1770240571762,12.02677132,2144.8,2143.3,0.23379]
[1770240571967,3.34687183,2144.4,2143.0,0.23382]
[1770240572568,3.34687183,2144.3,2143.0,0.23382]
[1770240572770,3.34687183,2144.3,2143.0,0.23950917]
[1770240573474,3.34687183,2144.7,2143.0,0.00568917]
[1770240573772,3.34687183,2144.6,2143.1,3.58703878]
[1770240573972,3.34687183,2144.6,2143.6,3.58703878]
[1770240575568,3.34687183,2144.6,2143.6,3.82079878]
[1770240576074,3.34687183,2144.9,2143.8,3.58703878]
[1770240576677,3.34687183,2144.9,2143.8,3.82077878]
[1770240577778,3.34687183,2144.9,2144.0,3.58703878]
[1770240578479,0.4706495,2145.1,2144.0,3.58703878]
[1770240578779,3.81752133,2145.1,2144.0,3.58703878]
[1770240579275,3.34687183,2144.9,2144.0,3.58703878]
[1770240581380,3.34687183,2144.9,2144.1,0.9327]
[1770240581578,3.81752133,2145.1,2144.2,3.58703878]
[1770240583373,0.0036495,2145.1,2144.2,3.58703878]
[1770240584878,3.35052133,2145.1,2144.2,3.58703878]
[1770240587180,3.98933773,2145.0,2144.2,3.58703878]
[1770240587381,3.35052133,2145.1,2144.2,3.58703878]
[1770240587682,0.0036495,2145.1,2144.2,3.58703878]
[1770240587882,3.35052133,2145.1,2144.2,3.58703878]
[1770240588782,3.35052133,2145.1,2144.1,1.16641]
[1770240588983,3.34687183,2144.5,2143.4,3.58703878]
[1770240589183,3.34687183,2144.3,2143.4,3.58703878]
[1770240589785,7.33857532,2144.2,2143.4,3.58703878]
[1770240589982,3.34687183,2144.2,2143.4,3.58703878]
[1770240590186,3.99517142,2144.1,2143.4,3.58703878]
[1770240590386,7.34161684,2144.0,2143.1,3.82084878]
[1770240590585,3.99489899,2143.9,2143.1,3.82084878]
[1770240590789,3.34687183,2144.0,2143.2,0.9328]
[1770240591088,3.99490099,2143.9,2143.2,0.9328]
[1770240591285,3.34687183,2144.0,2143.2,0.9328]
[1770240591484,3.99808837,2143.9,2143.2,0.9328]
[1770240591786,3.34687183,2144.0,2143.2,0.9328]
[1770240591986,7.34496407,2143.9,2143.2,0.9328]
[1770240592182,4.00101842,2143.8,2143.2,0.9328]
[1770240592382,3.34687183,2143.9,2143.2,0.9328]
[1770240592588,4.00175922,2143.8,2143.2,0.9328]
[1770240592788,3.34687183,2143.9,2143.2,0.9328]
[1770240592988,4.00175139,2143.8,2143.2,0.9328]
[1770240593283,40.46641205,2144.1,2143.3,3.58703878]
[1770240593490,3.34687183,2144.5,2143.3,3.82082878]
[1770240593689,4.00508267,2144.4,2143.5,3.58703878]
[1770240593891,4.00508267,2144.3,2143.5,3.58703878]
[1770240594189,3.94342543,2144.2,2143.5,3.58703878]
[1770240594489,3.34687183,2144.5,2143.5,3.58703878]
[1770240594689,3.94352712,2144.4,2143.5,3.58703878]
[1770240594890,3.94352712,2144.3,2143.5,3.58703878]
[1770240595091,3.34687183,2144.5,2143.5,3.58703878]
[1770240595287,3.94407818,2144.4,2143.5,3.58703878]
[1770240595493,8.37621306,2144.3,2143.5,3.58703878]
[1770240595693,3.94407818,2144.2,2143.5,3.82080878]
[1770240595895,4.43213488,2144.6,2143.5,3.82080878]
[1770240596195,8.36927932,2144.5,2143.5,3.82080878]
[1770240596391,3.93714444,2144.4,2143.5,3.82080878]
[1770240597996,8.36927932,2144.4,2143.5,3.82080878]
[1770240598192,4.43213488,2144.2,2143.3,4.47665647]
[1770240598494,3.93714444,2144.1,2143.3,4.47665647]
[1770240599498,5.08213238,2144.0,2143.2,0.9328]
[1770240599797,3.93714444,2143.9,2143.2,5.61196265]
[1770240599994,5.08213238,2144.2,2143.2,5.84576265]
[1770240600195,3.93720567,2144.1,2143.4,4.67916265]
[1770240600394,3.93719262,2144.0,2143.4,4.67916265]
[1770240600595,5.08213238,2144.2,2143.4,4.67916265]
[1770240600893,3.93731013,2144.1,2143.4,4.67916265]
[1770240601190,5.08213238,2144.5,2143.6,4.67916265]
[1770240601389,0.23363,2144.9,2143.6,4.67916265]
[1770240601390,45.54854443,2144.9,2143.6,4.67916265]
[1770240601587,3.93895166,2144.8,2143.9,4.91289265]
[1770240601791,3.93895166,2144.7,2143.9,4.91289265]
[1770240601987,5.08213238,2144.9,2143.9,4.91289265]
[1770240602195,5.08213238,2144.6,2143.6,4.67916265]
[1770240602396,5.08213238,2144.4,2143.3,4.67916265]
[1770240602597,5.08213238,2144.2,2143.3,4.67916265]
[1770240602797,3.87711005,2144.1,2143.3,4.67916265]
[1770240602998,5.08213238,2144.2,2143.3,4.67916265]
[1770240603400,3.87658388,2144.1,2143.3,4.67916265]
[1770240603597,5.08213238,2144.2,2143.3,4.67916265]
[1770240603796,3.87648612,2144.1,2143.3,4.67916265]
[1770240603998,5.08213238,2144.2,2143.3,4.91296265]
[1770240604298,3.87647645,2144.1,2143.3,4.91296265]
[1770240604599,5.08213238,2144.2,2143.3,4.91296265]
[1770240606096,40.46641205,2144.5,2143.5,4.67916265]
[1770240606298,5.08213238,2144.7,2143.8,4.67916265]
[1770240606499,8.95746492,2144.6,2143.8,4.67916265]
[1770240606700,3.87533254,2144.5,2143.8,4.67916265]
[1770240606900,5.08213238,2144.6,2143.8,4.67916265]
[1770240607096,3.87521411,2144.5,2143.8,4.67916265]
[1770240607298,5.08213238,2144.6,2143.2,0.9328]
[1770240607602,5.08213238,2144.1,2143.2,0.9328]
[1770240607900,5.08213238,2143.9,2143.2,0.9328]
[1770240608200,8.91459192,2143.8,2143.2,0.9328]
[1770240608397,5.08213238,2144.1,2143.2,5.84576265]
[1770240608596,5.08213238,2144.4,2143.3,4.91295265]
[1770240608796,3.82399923,2144.3,2143.3,4.91295265]
[1770240609002,3.82399923,2144.2,2143.3,4.91295265]
[1770240609204,5.08213238,2144.4,2143.3,4.91295265]
[1770240609399,3.80898461,2144.3,2143.3,4.91295265]
[1770240609696,3.80898461,2144.2,2143.4,4.91294265]
[1770240609900,5.08213238,2144.7,2143.7,4.91291265]
[1770240610102,3.80902647,2144.6,2143.7,4.91291265]
[1770240610303,5.08213238,2144.7,2143.7,4.91291265]
[1770240610503,3.80920101,2144.6,2143.7,4.91291265]
[1770240610702,5.08213238,2144.7,2143.7,4.91291265]
[1770240615300,5.08213238,2144.7,2143.8,5.61176265]
[1770240615606,5.08213238,2144.7,2143.8,5.84550265]
[1770240615801,5.08213238,2145.0,2144.2,4.67916265]
[1770240616000,5.08213238,2145.0,2144.2,4.91285265]
[1770240617106,0.0036495,2145.1,2144.2,4.91285265]
[1770240617305,0.0036495,2145.1,2144.4,4.67916265]
[1770240617502,0.0036495,2145.1,2144.1,1.07506]
[1770240617503,5.08213238,2145.6,2144.9,4.67916265]
[1770240617801,5.08213238,2145.9,2144.9,4.67916265]
[1770240618405,5.08213238,2145.4,2144.1,4.67916265]
[1770240618607,5.08213238,2145.2,2144.1,4.67916265]
[1770240619007,40.46641205,2145.3,2143.8,6.07876265]
[1770240619008,5.08213238,2145.0,2143.8,6.07876265]
[1770240619200,5.08213238,2145.0,2143.9,4.67916265]
[1770240619404,5.08213238,2145.0,2143.9,4.68342636]
[1770240619903,5.08213238,2145.0,2143.9,4.91715636]
[1770240620305,5.08213238,2145.0,2144.1,4.67916265]
[1770240620510,5.08213238,2145.0,2144.1,4.91287265]
[1770240621114,5.08213238,2145.0,2143.9,0.00426371]
[1770240621713,5.08213238,2145.0,2143.9,4.68342636]
[1770240623111,5.08213238,2144.9,2143.9,4.68342636]
[1770240624115,9.76513238,2144.9,2143.9,0.00426371]
[1770240624414,5.8263161,2144.8,2143.9,0.00426371]
[1770240625113,10.5093161,2144.7,2143.8,0.9326]
[1770240625317,5.8263161,2144.4,2143.4,0.23378]
[1770240626120,5.8263161,2144.1,2143.4,0.00337487]
[1770240626319,5.83157064,2144.1,2143.4,0.00337487]
[1770240626515,5.83157064,2144.1,2143.5,0.9325]
[1770240626819,0.00525454,2144.1,2143.5,6.36096961]
[1770240627020,0.467,2144.6,2143.7,5.42846961]
[1770240627420,6.2933161,2144.6,2143.7,5.66221961]
[1770240628018,6.29801119,2144.6,2143.7,5.66221961]
[1770240628222,6.29801119,2144.6,2143.7,5.42846961]
[1770240628615,6.29801119,2144.6,2143.5,0.9325]
[1770240628821,5.8263161,2144.4,2143.5,0.9325]
[1770240629722,5.8263161,2144.4,2143.5,6.36096961]
[1770240630420,5.8263161,2144.4,2143.7,0.23375]
[1770240630623,40.93810714,2144.6,2143.7,0.23375]
[1770240630624,5.09e-06,2144.6,2144.2,5.42846961]
[1770240630823,5.8263161,2145.3,2144.2,5.42846961]
[1770240631525,5.8263161,2145.3,2144.3,5.66214961]
[1770240631819,5.83039527,2145.3,2144.0,5.42846961]
[1770240632025,5.83039527,2145.3,2143.8,5.66220961]
[1770240632425,5.8263161,2145.2,2143.8,5.66220961]
[1770240632824,5.8263161,2145.2,2144.0,5.42846961]
[1770240633026,5.8263161,2145.2,2144.2,5.42846961]
[1770240635424,5.8263161,2145.2,2144.2,5.66216961]
[1770240635621,5.8263161,2145.2,2144.2,5.42846961]
[1770240635822,0.00407917,2145.3,2143.7,9.61514161]
[1770240635823,5.8263161,2145.0,2143.7,9.61514161]
[1770240636027,5.8263161,2144.8,2143.5,0.9325]
[1770240636428,10.5093161,2144.7,2143.5,0.9325]
[1770240636629,5.8263161,2144.6,2143.5,0.9325]
[1770240636929,5.8263161,2144.6,2143.5,6.36096961]
[1770240637121,5.8263161,2144.6,2143.5,6.59473961]
[1770240639224,5.8263161,2144.5,2143.5,6.36096961]
[1770240639835,5.8263161,2144.5,2143.6,5.66222961]
[1770240640230,40.46641205,2144.9,2143.6,5.66222961]
[1770240640231,5.8263161,2144.8,2143.6,5.66222961]
[1770240640427,5.8263161,2144.8,2143.8,5.42846961]
[1770240640835,5.8263161,2144.8,2143.8,5.66220961]
[1770240641735,5.8263161,2144.7,2143.8,0.23374]
[1770240642326,5.8263161,2144.7,2143.8,5.66220961]
[1770240642531,40.46641205,2144.9,2144.0,5.66218961]
[1770240642732,5.8263161,2145.0,2144.0,5.66218961]
[1770240645437,46.29680732,2145.3,2144.2,5.42846961]
[1770240645737,5.83039527,2145.3,2144.2,5.42846961]
[1770240646232,5.83039527,2145.3,2144.7,0.23364]
[1770240646233,0.00407917,2145.3,2144.7,0.23364]
[1770240646438,5.8263161,2145.9,2144.9,5.42846961]
[1770240646736,4.683,2145.8,2144.5,0.23366]
[1770240647038,5.8263161,2145.5,2144.5,0.23366]
[1770240647541,5.83154687,2145.5,2144.5,0.23366]
[1770240648038,5.83154687,2145.5,2144.5,5.66212961]
[1770240648540,5.83154687,2145.5,2144.5,5.42846961]
[1770240651437,5.83154687,2145.5,2144.5,5.66212961]
[1770240652142,5.83154687,2145.5,2144.7,5.42846961]
[1770240652143,0.00523077,2145.5,2144.7,5.42846961]
[1770240652342,0.00523077,2145.5,2144.7,5.66210961]
[1770240652743,0.00523077,2145.5,2144.8,6.36036961]
[1770240654040,10.11183387,2146.3,2145.4,5.97024771]
[1770240654041,6.34068253,2146.3,2145.4,5.97024771]
[1770240654836,40.46641205,2147.0,2145.7,6.20377771]
[1770240655042,6.34068253,2146.9,2145.7,5.97448025]
[1770240655436,6.34068253,2147.4,2146.3,5.97024771]
[1770240655634,6.34068253,2147.8,2146.3,5.97024771]
[1770240656243,6.34068253,2147.8,2146.5,6.20368771]
[1770240656438,6.34415448,2147.8,2146.7,5.97024771]
[1770240657338,6.57746448,2147.8,2146.2,5.97024771]
[1770240657543,6.34415448,2147.8,2146.2,5.97024771]
[1770240657941,6.34415448,2147.8,2146.6,5.97024771]
[1770240658142,6.34415448,2147.8,2146.8,5.97024771]
[1770240658337,6.34415448,2147.8,2146.5,5.97024771]
[1770240659643,6.34415448,2147.8,2146.5,6.20369771]
[1770240660041,6.34415448,2147.8,2145.9,0.2335]
[1770240660343,6.57746448,2147.8,2145.9,6.20527677]
[1770240660843,6.5774529,2147.4,2145.7,0.00423254]
[1770240661039,6.8108229,2147.2,2145.7,0.00423254]
[1770240662342,6.5774529,2146.8,2145.7,0.00423254]
[1770240662643,6.5774529,2146.3,2145.0,5.97177677]
[1770240662838,11.7264529,2146.3,2144.9,0.23362]
[1770240663035,6.5774529,2146.2,2144.9,6.20539677]
[1770240663236,6.5774529,2146.2,2145.2,6.20535677]
[1770240663442,6.58176045,2146.2,2145.2,6.20893826]
[1770240664846,6.58176045,2146.2,2145.2,0.23716149]
[1770240665246,6.58176045,2146.2,2145.2,0.00358149]
[1770240666049,6.58176045,2146.2,2145.3,0.9322]
[1770240667043,6.5774529,2145.4,2144.3,5.97177677]
[1770240667249,6.5774529,2145.1,2144.0,5.97177677]
[1770240667544,6.5774529,2145.1,2143.6,5.97177677]
[1770240668150,6.5774529,2145.1,2143.6,5.97764171]
[1770240668350,6.5774529,2145.1,2143.7,6.90367677]
[1770240668950,6.8110529,2145.1,2143.7,6.90367677]
[1770240670648,6.5774529,2145.1,2143.9,5.97177677]
[1770240671849,6.5774529,2145.1,2143.9,6.20550677]
[1770240675251,0.466,2145.3,2144.3,6.20545677]
[1770240675452,0.466,2145.3,2144.5,5.97177677]
[1770240676056,6.5774529,2145.8,2144.5,5.97177677]
[1770240678654,7.0434529,2146.1,2144.7,5.97177677]
[1770240678855,7.0434529,2146.1,2145.1,5.97177677]
[1770240679154,7.0434529,2146.1,2145.1,6.20536677]
[1770240681154,0.466,2146.1,2145.1,6.20536677]
[1770240682154,6.5774529,2146.7,2145.8,5.97177677]
[1770240682354,7.0434529,2146.9,2145.8,5.97177677]
[1770240682654,7.0434529,2146.9,2145.8,6.20529677]
[1770240683250,7.04741449,2146.9,2145.8,6.20975868]
[1770240683455,0.46996159,2146.9,2146.0,6.20527677]
[1770240683956,6.5774529,2147.2,2146.0,6.20527677]
[1770240684451,6.5774529,2147.2,2146.2,6.55116072]
[1770240684657,6.57883075,2148.0,2146.6,6.55116072]
[1770240684956,6.58485604,2148.0,2146.6,6.55116072]
[1770240685353,6.58485604,2148.0,2146.8,6.55116072]
[1770240685657,6.58485604,2148.0,2146.8,6.78457072]
[1770240686058,6.58485604,2148.0,2146.8,6.55116072]
[1770240687058,6.58485604,2148.0,2146.4,6.55116072]
[1770240688159,6.58485604,2148.0,2146.3,0.23346]
[1770240688160,6.58485604,2148.0,2146.6,6.78460072]
[1770240688360,6.58485604,2148.0,2146.8,6.55116072]
[1770240689261,6.58485604,2148.0,2146.0,0.466]
[1770240689262,6.58485604,2148.0,2146.5,6.55116072]
[1770240689458,0.2333,2147.9,2146.5,6.55116072]
[1770240689654,0.2333,2147.9,2146.3,0.23347]
[1770240689655,6.57883075,2147.5,2146.2,6.55116072]
[1770240690060,7.04483075,2147.5,2146.2,6.55116072]
[1770240690461,7.04483075,2147.5,2146.3,0.9308]
[1770240690663,7.04483075,2147.5,2146.3,7.48196072]
[1770240691065,7.27817075,2147.5,2146.3,0.9308]
[1770240692161,6.57883075,2147.2,2146.3,0.9308]
[1770240692468,6.57883075,2147.0,2146.3,0.9308]
[1770240693166,6.57883075,2147.3,2146.3,7.48196072]
[1770240694163,7.04483075,2147.5,2146.3,7.48196072]
[1770240695467,7.04483075,2147.5,2146.3,7.71543072]
[1770240697168,6.57883075,2147.5,2146.3,7.71543072]
[1770240697368,6.57883075,2147.8,2146.8,6.55116072]
[1770240698564,6.58485604,2148.0,2147.0,6.55116072]
[1770240698967,6.57883075,2147.9,2146.5,6.55116072]
[1770240699667,6.57883075,2147.9,2146.5,6.78461072]
[1770240699858,6.57883075,2147.9,2146.7,6.78458072]
[1770240703268,6.57883075,2147.9,2146.9,6.55116072]
[1770240707173,0.466,2148.4,2147.4,6.55116072]
[1770240707378,6.57883075,2148.7,2147.7,6.55116072]
[1770240707974,6.57883075,2149.1,2147.7,0.23332]
[1770240708179,6.57883075,2148.2,2146.9,6.78456072]
[1770240708375,6.57883075,2148.0,2146.9,6.78456072]
[1770240708678,6.57883075,2147.8,2146.5,6.55116072]
[1770240709078,6.57883075,2147.8,2146.5,6.78460072]
[1770240709281,7.04483075,2148.1,2146.8,6.78457072]
[1770240710977,6.57883075,2148.4,2147.2,6.55116072]
[1770240711180,6.57883075,2148.4,2147.4,6.55116072]
[1770240711676,6.57883075,2148.4,2147.4,6.78451072]
[1770240711982,6.57883075,2148.4,2147.1,6.55116072]
[1770240712182,6.57883075,2148.3,2147.1,6.55116072]
[1770240713682,6.57883075,2148.3,2147.1,6.78451072]
[1770240714882,6.57883075,2148.3,2147.4,6.86514731]
[1770240715783,6.7527535,2148.1,2146.7,6.86514731]
[1770240715979,6.7527535,2147.8,2146.7,6.86514731]
[1770240716483,6.7527535,2147.8,2146.7,7.09854731]
[1770240716678,0.466,2148.0,2147.1,6.86514731]
[1770240717585,6.7527535,2148.5,2147.1,6.86514731]
[1770240717781,6.7527535,2148.5,2147.6,6.86514731]
[1770240717978,7.2187535,2148.8,2147.6,7.09844731]
[1770240719579,0.466,2148.8,2147.9,6.95211688]
[1770240721083,0.00396519,2149.1,2148.4,6.95211688]
[1770240721384,7.28721609,2150.1,2148.8,6.95211688]
[1770240722284,7.28721609,2149.6,2148.4,0.00396936]
[1770240722680,7.28721609,2149.6,2148.4,6.95608624]
[1770240722887,7.28721609,2149.6,2148.7,6.95211688]
[1770240723086,7.28721609,2150.0,2148.7,6.95211688]
[1770240723787,7.28721609,2150.0,2148.9,6.95211688]
[1770240724288,7.28721609,2150.0,2148.9,7.18527688]
[1770240724785,0.004679,2150.1,2148.5,7.18531688]
[1770240724786,7.29189509,2150.1,2148.5,7.18531688]
[1770240724990,7.29189509,2150.1,2148.5,6.95211688]
[1770240724991,7.52026609,2149.9,2148.5,6.95211688]
[1770240725392,7.28721609,2149.9,2148.5,6.95211688]
[1770240725584,7.28721609,2149.9,2148.7,6.95211688]
[1770240725982,7.28721609,2149.3,2147.8,6.95211688]
[1770240726285,7.28721609,2149.1,2147.7,0.9302]
[1770240726489,46.12832592,2149.7,2148.0,6.95211688]
[1770240726687,7.28721609,2149.4,2147.7,7.88231688]
[1770240726986,7.52035609,2149.1,2147.7,0.93615273]
[1770240727189,7.28721609,2148.9,2147.7,0.93615273]
[1770240727490,7.28721609,2148.9,2147.4,6.95211688]
[1770240727491,7.28721609,2148.5,2147.1,6.95211688]
[1770240727889,7.52042609,2148.5,2147.1,6.95211688]
[1770240728089,7.28721609,2148.3,2147.1,6.95211688]
[1770240728286,4.683,2148.2,2147.1,6.95211688]
[1770240728489,7.28721609,2148.1,2147.1,6.95812734]
[1770240728888,7.28721609,2148.1,2147.2,0.9308]
[1770240729497,7.28721609,2148.0,2147.2,0.9308]
[1770240729897,11.97021609,2147.9,2147.1,0.00601046]
[1770240730101,7.28721609,2147.8,2147.1,0.00601046]
[1770240730796,7.28721609,2148.1,2147.1,0.00601046]
[1770240731000,7.28721609,2148.1,2147.1,6.95812734]
[1770240731202,7.28721609,2148.1,2147.1,0.00601046]
[1770240731500,7.28721609,2148.1,2146.5,6.95211688]
[1770240731501,7.28721609,2147.8,2146.5,6.95211688]
[1770240731696,7.28721609,2147.4,2146.1,6.95211688]
[1770240731995,0.466,2147.5,2146.3,6.95211688]
[1770240732198,0.466,2147.5,2146.5,7.18553688]
[1770240732397,0.466,2147.5,2146.7,6.95211688]
[1770240732598,0.466,2147.5,2146.7,6.9557389]
[1770240733394,7.75321609,2147.5,2146.3,6.95211688]
[1770240733994,7.75321609,2147.5,2146.0,6.95211688]
[1770240734599,7.75321609,2147.5,2146.0,6.95697014]
[1770240735104,0.466,2147.5,2146.6,6.95211688]
[1770240735301,0.466,2147.5,2146.6,7.18552688]
[1770240735502,7.28721609,2148.1,2146.9,6.95211688]
[1770240737800,0.00417861,2148.2,2147.1,6.95211688]
[1770240737999,0.00417861,2148.2,2147.3,6.95211688]
[1770240738607,0.00417861,2148.2,2147.3,7.18545688]
[1770240739105,0.00209769,2148.2,2147.5,6.95211688]
[1770240739307,7.28721609,2148.8,2147.7,7.18540688]
[1770240740203,7.29230639,2148.8,2147.7,7.19064116]
[1770240740801,7.29230639,2148.8,2147.7,0.00523428]
[1770240741202,7.28721609,2148.6,2147.1,7.18547688]
[1770240741701,0.0050903,2148.8,2146.8,1.53961]
[1770240741702,0.0050903,2148.8,2147.6,6.95211688]
[1770240741902,0.0050903,2148.8,2147.6,7.18541688]
[1770240742105,0.0050903,2148.8,2147.8,7.18539688]
[1770240742301,0.0050903,2148.8,2148.0,7.18537688]
[1770240742508,7.28721609,2149.8,2148.3,7.18533688]
[1770240742906,7.28721609,2149.8,2148.5,6.95211688]
[1770240743210,7.28721609,2149.8,2148.1,6.95211688]
[1770240743607,7.28721609,2149.5,2148.1,6.95211688]
[1770240743807,7.28721609,2149.3,2148.1,6.95211688]
[1770240744602,40.55080009,2149.8,2148.3,7.8536377]
[1770240744603,7.31631343,2149.6,2148.3,7.8536377]
[1770240746510,7.31631343,2149.6,2148.3,7.6204077]
[1770240747211,7.31631343,2149.4,2148.0,7.6204077]
[1770240747405,4.683,2149.3,2148.0,7.6204077]
[1770240747605,7.31631343,2149.2,2148.0,7.6204077]
[1770240747805,7.31631343,2148.9,2147.7,7.6204077]
[1770240748002,7.31631343,2148.8,2147.7,7.8536977]
[1770240749010,7.31631343,2148.7,2147.7,7.6204077]
[1770240749207,7.31631343,2148.6,2147.6,0.00489796]
[1770240749703,11.99931343,2148.6,2147.6,0.00489796]
[1770240749907,7.31631343,2148.4,2147.2,7.6204077]
[1770240750108,7.31631343,2148.1,2146.9,7.6204077]
[1770240750408,7.31631343,2148.1,2146.9,7.8537877]
[1770240751005,7.32045295,2148.1,2146.9,7.85851018]
[1770240753211,0.00413952,2148.1,2147.1,7.6204077]
[1770240755805,0.00413952,2148.1,2147.3,0.23333]
[1770240756012,0.00413952,2148.1,2147.4,7.6204077]
[1770240756916,0.00413952,2148.1,2147.4,7.8537277]
[1770240758613,0.00413952,2148.1,2147.6,7.6204077]
[1770240758918,7.31631343,2148.8,2147.6,7.8537077]
[1770240759918,7.31631343,2148.6,2147.6,7.8537077]
[1770240760119,7.31631343,2148.6,2147.6,7.6204077]
[1770240760615,7.31631343,2148.6,2147.6,7.8537077]
[1770240761315,0.00466207,2148.8,2147.6,7.8537077]
[1770240761515,7.3209755,2148.8,2147.6,7.8537077]
[1770240761920,7.31631343,2148.7,2147.6,7.8537077]
[1770240762222,7.31631343,2148.5,2147.6,7.8537077]
[1770240764017,7.31631343,2148.5,2146.9,2.77610494]
[1770240764018,7.3209755,2148.8,2147.8,7.8536777]
[1770240764420,0.00466207,2148.8,2148.0,7.6204077]
[1770240765021,0.00466207,2148.8,2148.0,7.8536677]
[1770240765216,0.00466207,2148.8,2148.2,7.8536477]
[1770240765615,7.31631343,2148.7,2147.8,7.6204077]
[1770240765816,11.99931343,2148.5,2147.5,7.6204077]
[1770240766015,7.31631343,2148.3,2147.5,7.6204077]
[1770240766224,11.99931343,2148.3,2147.5,7.6204077]
[1770240766424,7.31631343,2148.5,2147.5,7.8537177]
[1770240766621,7.31631343,2148.5,2147.7,7.6204077]
[1770240766827,11.99931343,2148.5,2147.7,7.6204077]
[1770240767419,7.31631343,2148.5,2147.7,7.6204077]
[1770240768128,12.0039755,2148.8,2147.7,7.8536877]
[1770240768823,7.3209755,2148.8,2147.9,7.6204077]
[1770240769528,0.00466207,2148.8,2147.9,7.6204077]
[1770240770127,0.00466207,2148.8,2147.9,7.8536677]
[1770240771029,0.00466207,2148.8,2148.1,7.6204077]
[1770240772924,11.99931343,2148.7,2147.8,7.6204077]
[1770240773120,7.31631343,2148.4,2147.5,7.6204077]
[1770240773325,7.31631343,2148.4,2146.9,7.62513018]
[1770240773326,4.683,2147.9,2146.9,7.62513018]
[1770240773521,7.31631343,2147.7,2146.9,7.62513018]
[1770240773727,7.78231343,2148.0,2146.9,7.85851018]
[1770240773925,0.466,2148.0,2147.1,7.19333742]
[1770240775327,12.46087871,2148.0,2147.1,7.19333742]
[1770240776130,5.149,2148.0,2147.1,7.19333742]
[1770240776332,0.466,2148.0,2147.1,7.19333742]
[1770240776829,0.466,2148.0,2147.1,7.42669742]
[1770240778223,0.466,2148.0,2147.3,7.19333742]
[1770240781129,0.466,2148.0,2146.9,0.00472248]
[1770240781334,6.9502239,2147.9,2147.0,7.34300988]
[1770240781734,6.9502239,2147.9,2146.9,0.00472248]
[1770240782638,6.9502239,2147.9,2146.9,7.34773236]
[1770240782934,0.466,2148.0,2146.9,7.34773236]
[1770240783336,0.466,2148.0,2146.9,7.58111236]
[1770240784132,0.466,2148.0,2147.1,7.34300988]
[1770240789339,7.4162239,2148.0,2147.1,7.34300988]
[1770240789542,6.9502239,2148.0,2147.1,7.34300988]
[1770240790245,47.88263595,2148.3,2147.2,0.23334]
[1770240790435,40.93241205,2148.3,2147.3,7.34300988]
[1770240790640,0.466,2148.3,2147.6,7.57630988]
[1770240790839,40.47107412,2148.8,2147.1,1.07344]
[1770240790840,0.00466207,2148.8,2148.1,7.34300988]
[1770240793141,6.95488597,2148.8,2147.8,7.34300988]
[1770240794444,0.00466207,2148.8,2147.8,7.34300988]
[1770240794649,0.00466207,2148.8,2148.0,7.34300988]
[1770240794846,6.9502239,2149.6,2148.2,7.34300988]
[1770240795042,6.9502239,2149.6,2147.9,1.07304]
[1770240795043,6.9502239,2149.6,2148.4,7.34300988]
[1770240795846,6.95457051,2149.6,2148.4,7.57622988]
[1770240796047,0.00434661,2149.6,2148.6,7.34300988]
[1770240796246,0.00434661,2149.6,2148.6,7.34901765]